bitfinex-derivatives/quotes_ETHF0:USTF0_20241022
["timestamp","ask_amount","ask_price","bid_price","bid_amount"]
[1729590082658,2.94,2615.3,2615.1,3.2078]
[1729590082854,2.94,2615.3,2615.2,0.38255]
[1729590083151,2.94,2615.3,2615.1,3.2078]
[1729590083352,2.94,2615.3,2615.2,0.38255]
[1729590083955,2.94,2615.6,2615.5,0.3825]
[1729590084151,4.606,2615.6,2615.5,0.3825]
[1729590084354,8.4292,2615.6,2615.5,0.3825]
[1729590084561,2.94,2615.6,2615.5,0.3825]
[1729590084756,2.94,2615.6,2615.1,4.16418]
[1729590084757,2.94,2615.6,2615.4,0.38251]
[1729590084959,2.94,2615.8,2615.2,3.2078]
[1729590085159,4.65818544,2629.5,2616.3,0.38239]
[1729590085160,2.94,2616.4,2616.3,0.38239]
[1729590085359,2.94,2616.9,2616.4,0.95593]
[1729590085657,2.94,2617.1,2617.0,0.38228]
[1729590085853,4.8738,2617.5,2616.7,0.9558]
[1729590085854,2.94,2617.4,2616.7,0.9558]
[1729590086053,2.94,2617.6,2617.5,0.38221]
[1729590087350,2.94,2617.6,2617.5,3.59001]
[1729590087760,9.568,2618.4,2617.6,0.95548]
[1729590087761,5.01148415,2618.3,2617.6,0.95548]
[1729590088057,2.94,2618.3,2618.2,0.38211]
[1729590088248,2.94,2618.3,2618.1,0.38211]
[1729590088453,2.94,2618.3,2618.2,0.38211]
[1729590089265,2.94,2618.3,2617.9,3.2078]
[1729590089558,2.94,2618.0,2617.9,3.58994]
[1729590090154,2.94,2618.2,2618.1,0.38212]
[1729590090355,2.94,2618.9,2618.0,3.8192]
[1729590090556,2.94,2619.0,2618.3,3.2078]
[1729590090761,2.0779731,2619.2,2618.9,0.38201]
[1729590091061,2.0779731,2619.2,2618.6,3.2078]
[1729590091062,0.3419731,2619.2,2619.0,0.38198]
[1729590091259,2.94,2619.3,2618.9,3.2078]
[1729590091764,2.94,2619.3,2619.2,0.38196]
[1729590091959,2.94,2619.3,2619.1,0.38197]
[1729590092351,2.94,2619.3,2618.9,3.2078]
[1729590092565,3.32196,2619.3,2618.9,3.2078]
[1729590092969,2.94,2619.3,2619.1,0.38198]
[1729590093158,2.94,2619.3,2618.9,3.2078]
[1729590093459,2.94,2619.0,2618.7,0.38203]
[1729590094058,2.94,2619.0,2618.6,3.2078]
[1729590094261,3.32196,2619.3,2618.8,0.38201]
[1729590094460,0.38197,2619.2,2618.6,0.38204]
[1729590094659,0.32845612,2619.4,2618.3,3.2078]
[1729590094660,2.94,2618.7,2618.3,3.2078]
[1729590094866,0.38205,2618.6,2618.3,3.2078]
[1729590095163,3.32207,2618.5,2618.0,0.38213]
[1729590095360,2.94,2618.2,2617.8,3.2078]
[1729590095668,3.32211,2618.2,2617.8,3.2078]
[1729590096061,2.94,2618.2,2617.8,3.2078]
[1729590096367,2.94,2618.2,2618.0,0.38214]
[1729590096566,2.94,2618.2,2617.8,3.2078]
[1729590096759,3.32212,2618.2,2617.8,3.2078]
[1729590096964,0.38213,2618.1,2617.8,3.2078]
[1729590097766,3.32212,2618.2,2617.8,3.58997]
[1729590097968,2.94,2618.2,2617.8,3.58997]
[1729590098169,2.94,2618.2,2617.9,0.38215]
[1729590098565,2.94,2618.2,2617.9,0.38214]
[1729590098760,0.34096908,2618.7,2618.1,3.2078]
[1729590098761,2.94,2618.7,2618.1,3.2078]
[1729590099060,1.736,2618.9,2618.1,3.2078]
[1729590099061,2.94,2618.5,2618.1,3.2078]
[1729590099262,2.94,2618.5,2617.7,0.38218]
[1729590099263,3.32212,2618.2,2617.7,0.38218]
[1729590099461,3.32212,2618.2,2617.6,3.2078]
[1729590099462,2.94,2618.2,2617.6,3.2078]
[1729590099654,2.94,2618.2,2618.0,0.38213]
[1729590099859,2.94,2618.2,2617.9,0.38214]
[1729590100063,2.94,2618.2,2617.6,3.2078]
[1729590100265,0.38213,2618.1,2617.7,0.38218]
[1729590100568,3.32215,2618.0,2617.6,3.58999]
[1729590100767,2.94,2618.0,2617.7,0.38217]
[1729590100967,2.94,2618.0,2617.6,3.2078]
[1729590101169,3.32214,2618.0,2617.6,3.58999]
[1729590101369,2.94,2618.0,2617.7,0.38217]
[1729590102569,2.94,2618.0,2617.8,0.38215]
[1729590102972,2.94,2618.0,2617.9,0.38215]
[1729590103465,3.58992,2618.2,2617.6,3.2078]
[1729590103466,6.1478,2618.2,2617.6,3.2078]
[1729590103664,6.52991,2618.2,2617.8,0.38216]
[1729590103964,6.52991,2618.2,2617.6,3.2078]
[1729590103965,6.1478,2618.2,2617.9,0.38214]
[1729590104167,6.1478,2618.2,2617.6,3.2078]
[1729590104168,6.1478,2618.2,2617.7,0.38217]
[1729590104469,0.38213,2618.1,2617.6,3.2078]
[1729590104670,0.38213,2618.1,2617.8,0.38216]
[1729590105366,8.26592,2618.2,2617.8,0.38216]
[1729590106271,8.26592,2618.2,2617.9,0.38215]
[1729590106464,8.26592,2618.2,2617.6,3.2078]
[1729590106465,7.8838,2618.2,2617.3,3.2078]
[1729590106665,0.38213,2618.1,2617.3,3.2078]
[1729590106969,2.94,2618.0,2617.8,0.38216]
[1729590107469,3.82,2617.9,2617.8,0.38216]
[1729590108166,3.82,2617.9,2617.8,0.38217]
[1729590108774,3.24618523,2617.9,2617.8,0.38217]
[1729590108965,2.94,2618.0,2617.8,0.38217]
[1729590109165,6.76,2618.0,2617.9,0.38215]
[1729590109365,2.94,2618.0,2617.9,0.38215]
[1729590109580,6.76,2618.0,2617.9,0.38215]
[1729590109771,3.2078,2618.2,2617.9,0.57381477]
[1729590110069,2.94,2619.0,2618.1,3.78161477]
[1729590110267,0.33051541,2619.1,2619.0,0.38198]
[1729590110567,2.94,2619.2,2618.9,0.57381477]
[1729590110767,2.94,2619.2,2619.1,0.38198]
[1729590110961,2.94,2619.2,2619.0,0.38198]
[1729590111169,2.94,2619.2,2619.1,0.95579477]
[1729590111568,6.7584,2619.2,2618.6,3.2078]
[1729590111768,2.94,2619.2,2619.0,0.95579477]
[1729590111964,2.94,2619.2,2619.0,0.57381477]
[1729590112568,2.94,2619.5,2619.1,0.57381477]
[1729590112767,6.52968,2619.8,2619.5,0.38191]
[1729590112971,6.1478,2619.8,2619.6,0.3819]
[1729590113179,0.38191,2619.6,2619.3,0.38194]
[1729590113366,2.94,2619.6,2619.5,0.57381477]
[1729590113777,3.3219,2619.6,2619.5,0.57381477]
[1729590113975,6.7576,2619.6,2619.2,3.2078]
[1729590114282,2.94,2619.6,2619.4,0.95573477]
[1729590114487,3.32191,2619.6,2619.4,0.57381477]
[1729590114783,2.94,2619.6,2619.5,0.38192]
[1729590114973,6.48645677,2619.8,2619.4,0.57381477]
[1729590115177,2.94,2619.8,2619.7,0.38189]
[1729590115484,2.94,2619.8,2619.7,0.95570477]
[1729590115677,2.94,2619.8,2619.7,0.57381477]
[1729590116871,2.94,2620.0,2619.7,0.57381477]
[1729590117081,2.94,2620.0,2619.9,0.57381477]
[1729590117581,5.5008,2620.0,2619.2,3.2078]
[1729590117783,3.32192,2619.5,2619.4,0.57381477]
[1729590117976,2.94,2619.5,2618.7,3.2078]
[1729590118279,0.38193,2619.4,2619.3,0.57381477]
[1729590118487,2.94,2619.5,2619.3,0.57381477]
[1729590118783,0.38193,2619.4,2619.3,0.57381477]
[1729590121184,2.94,2619.5,2619.3,0.57381477]
[1729590121383,3.55091093,2619.7,2619.0,3.2078]
[1729590121384,6.1478,2619.7,2619.4,0.57381477]
[1729590121584,3.3219,2619.7,2619.6,0.57381477]
[1729590121889,0.38189,2619.7,2619.6,0.57381477]
[1729590122077,3.2078,2620.1,2619.6,0.57381477]
[1729590122078,4.8918,2620.1,2619.6,0.57381477]
[1729590122278,5.27364,2620.1,2619.9,0.57381477]
[1729590122682,0.38185,2620.0,2619.9,0.57381477]
[1729590123078,3.2078,2620.1,2619.9,0.57381477]
[1729590123282,3.58964,2620.1,2620.0,0.57381477]
[1729590123781,0.38184,2620.1,2620.0,0.57381477]
[1729590123973,2.94,2620.2,2620.0,0.57381477]
[1729590124178,3.2078,2620.4,2620.2,0.38181]
[1729590124382,3.2078,2620.4,2620.3,0.57381477]
[1729590124599,3.2078,2620.4,2619.7,3.2078]
[1729590124779,3.2078,2620.4,2620.3,0.95561477]
[1729590125083,1.684,2620.5,2620.4,0.38179]
[1729590125281,1.684,2620.5,2620.4,0.95560477]
[1729590125478,6.52955,2620.7,2620.4,0.57381477]
[1729590125479,6.1478,2620.7,2620.4,0.57381477]
[1729590125677,6.1478,2620.7,2619.7,3.2078]
[1729590125678,2.94,2620.5,2619.7,3.2078]
[1729590125982,0.38188,2619.8,2619.7,3.2078]
[1729590126176,2.94,2620.0,2619.7,0.57381477]
[1729590126382,0.18893315,2620.8,2619.0,40.8]
[1729590126383,0.103,2621.3,2620.2,1.27381477]
[1729590126583,0.103,2621.3,2619.9,9.0878]
[1729590126584,0.13983053,2622.2,2621.5,0.95406]
[1729590126787,2.94,2623.4,2622.1,6.1478]
[1729590127089,3.2078,2623.6,2622.3,3.2078]
[1729590127090,2.94,2622.8,2622.3,3.2078]
[1729590127382,2.94,2622.8,2622.0,3.2078]
[1729590127587,2.94,2622.8,2622.1,0.38154]
[1729590127887,2.94,2622.8,2622.3,3.2078]
[1729590128584,6.5292,2623.1,2622.3,3.2078]
[1729590128787,6.5292,2623.1,2622.3,3.5893]
[1729590128788,1.683,2623.0,2622.3,3.5893]
[1729590128983,1.683,2623.0,2622.3,3.2078]
[1729590129192,1.683,2623.0,2622.4,0.3815]
[1729590129377,4.8908,2623.1,2622.4,0.3815]
[1729590129580,1.683,2623.2,2622.7,3.2078]
[1729590130484,3.32136,2623.4,2622.7,3.2078]
[1729590130485,0.38136,2623.4,2622.7,3.2078]
[1729590130789,1.683,2623.3,2622.7,3.2078]
[1729590131480,0.38136,2623.4,2622.7,3.2078]
[1729590131682,16.0608,2623.6,2622.7,3.2078]
[1729590131683,1.683,2623.3,2622.7,3.2078]
[1729590131887,0.38133,2623.6,2623.0,3.2078]
[1729590132080,3.2078,2625.2,2623.5,3.3]
[1729590132392,6.5078,2624.9,2623.8,3.2078]
[1729590132687,6.5078,2624.6,2623.6,3.2968]
[1729590132878,6.5078,2624.6,2623.6,3.2078]
[1729590133083,1.683,2624.5,2623.6,3.2078]
[1729590133688,3.2078,2624.1,2623.3,3.2968]
[1729590133892,3.68129,2623.9,2623.3,3.2078]
[1729590134081,0.3813,2623.8,2623.3,3.2078]
[1729590134388,1.682,2623.7,2623.3,3.2078]
[1729590134789,2.06332,2623.7,2623.3,3.2078]
[1729590135185,1.682,2623.7,2623.3,3.2078]
[1729590135585,2.06331,2623.7,2623.3,3.2078]
[1729590135791,1.682,2623.6,2623.3,3.2078]
[1729590137391,0.33805456,2624.3,2623.3,3.2078]
[1729590137392,3.2078,2623.8,2623.3,3.2078]
[1729590137597,0.38133,2623.6,2623.0,3.2078]
[1729590137780,0.38136,2623.4,2623.0,3.2078]
[1729590138187,3.2078,2623.8,2623.0,3.2078]
[1729590138395,1.682,2623.7,2623.0,3.2078]
[1729590138696,0.38137,2623.3,2623.0,3.2078]
[1729590139190,1.682,2623.7,2623.0,3.2078]
[1729590139401,0.38139,2623.2,2623.0,3.2078]
[1729590139588,0.38138,2623.2,2623.0,3.2078]
[1729590139990,1.682,2623.7,2623.0,3.2078]
[1729590140199,0.38136,2623.4,2623.0,3.2078]
[1729590140497,0.38139,2623.1,2623.0,3.2078]
[1729590140899,0.38139,2623.2,2623.0,3.2078]
[1729590141196,0.38139,2623.1,2623.0,3.2078]
[1729590142386,4.19339,2623.1,2623.0,3.2078]
[1729590143995,2.4749157,2623.1,2623.0,3.2078]
[1729590144294,2.8563057,2623.1,2623.0,3.2078]
[1729590144490,4.5383057,2623.1,2623.0,3.2078]
[1729590145392,2.8563057,2623.1,2623.0,3.2078]
[1729590145686,1.672,2623.2,2623.0,4.5448843]
[1729590145889,2.05338,2623.2,2623.1,1.3370843]
[1729590147104,1.672,2623.2,2622.7,3.2078]
[1729590147295,3.58922,2622.9,2622.8,1.14061359]
[1729590147490,4.25356,2623.0,2622.2,3.2078]
[1729590147690,4.25356,2623.0,2622.4,1.14061359]
[1729590147905,0.38148,2622.5,2622.4,1.14061359]
[1729590150099,0.33077089,2623.0,2622.6,1.14061359]
[1729590150305,0.38145,2622.7,2622.6,1.14061359]
[1729590150991,0.38151,2622.3,2622.2,3.2078]
[1729590151394,0.38151,2622.3,2622.2,4.34841359]
[1729590154918,3.26620615,2622.6,2622.2,4.34841359]
[1729590154919,3.2078,2623.9,2623.1,0.38139]
[1729590155099,0.38132,2623.6,2623.5,0.75927359]
[1729590155413,4.16102,2623.9,2623.2,3.2078]
[1729590155414,0.38137,2623.3,2623.2,3.2078]
[1729590155901,0.38137,2623.3,2623.2,3.96707359]
[1729590156703,3.812,2623.3,2622.9,3.2078]
[1729590156901,2.93,2623.4,2623.0,0.75927359]
[1729590157093,0.38139,2623.1,2623.0,0.75927359]
[1729590157296,0.38141,2623.0,2622.9,3.2078]
[1729590157503,0.38141,2623.0,2622.9,3.96707359]
[1729590158406,2.93,2623.4,2622.9,3.96707359]
[1729590158608,2.05337,2623.3,2623.2,0.75927359]
[1729590159494,2.05337,2623.3,2623.2,3.96707359]
[1729590160405,0.38137,2623.3,2623.2,3.96707359]
[1729590161202,0.38137,2623.3,2623.2,0.75927359]
[1729590161799,3.812,2623.3,2622.8,3.2078]
[1729590162112,3.31139,2623.1,2623.0,0.75927359]
[1729590163701,3.31139,2623.1,2622.5,3.2078]
[1729590163702,2.93,2623.1,2622.5,3.2078]
[1729590163904,0.38142,2622.9,2622.8,0.75927359]
[1729590164099,0.38142,2622.9,2622.5,3.2078]
[1729590164100,0.38147,2622.6,2622.5,3.2078]
[1729590164303,0.38147,2622.6,2622.5,3.96707359]
[1729590165305,2.05347,2622.6,2622.5,3.96707359]
[1729590165506,2.05347,2622.6,2622.5,0.75927359]
[1729590168802,1.48057125,2622.6,2622.5,0.75927359]
[1729590169003,1.86204125,2622.6,2622.5,0.75927359]
[1729590169406,0.38151,2622.3,2622.2,3.2078]
[1729590170311,1.672,2622.5,2622.2,3.2078]
[1729590170312,0.3815,2622.4,2622.2,3.2078]
[1729590170611,0.38151,2622.3,2622.2,3.2078]
[1729590171400,1.672,2622.5,2622.2,3.2078]
[1729590171401,0.38151,2622.4,2622.2,3.2078]
[1729590171605,1.672,2622.5,2622.2,3.2078]
[1729590171606,0.38151,2622.3,2622.2,3.2078]
[1729590175312,2.93,2623.2,2622.2,7.0214]
[1729590175508,0.38149,2622.5,2622.2,3.2078]
[1729590175706,0.38149,2622.5,2622.2,3.58932]
[1729590175903,0.95357,2622.9,2622.2,3.2078]
[1729590176108,0.38151,2622.3,2622.2,3.2078]
[1729590180520,1.602,2622.8,2622.2,7.0214]
[1729590180721,0.38151,2622.3,2622.2,3.2078]
[1729590184533,0.38151,2622.3,2622.2,3.2078]
[1729590186331,0.3815,2622.4,2622.2,3.2078]
[1729590186739,0.38151,2622.3,2622.2,3.2078]
[1729590187142,0.38151,2622.3,2622.2,7.0214]
[1729590187631,0.3815,2622.4,2622.2,7.0214]
[1729590187934,0.38149,2622.5,2622.2,3.58931]
[1729590188237,2.48646,2623.2,2622.2,6.1378]
[1729590188435,2.48646,2623.2,2622.9,3.2078]
[1729590188436,2.8811162,2623.2,2622.9,3.2078]
[1729590188833,0.38141,2623.0,2622.9,3.2078]
[1729590189236,0.38141,2623.0,2622.9,7.0206]
[1729590189435,0.38141,2623.1,2622.9,7.0206]
[1729590189735,0.38141,2623.0,2622.9,3.2078]
[1729590193441,0.38141,2623.0,2622.9,7.0206]
[1729590197441,0.38141,2623.0,2622.9,3.2078]
[1729590197637,7.12421,2623.0,2622.9,3.2078]
[1729590197839,0.3815,2622.4,2622.3,3.2078]
[1729590200148,0.3815,2622.4,2622.3,3.09109]
[1729590200346,0.38154,2622.1,2622.0,3.2078]
[1729590200746,0.38152,2622.3,2622.0,7.0214]
[1729590200939,0.38154,2622.1,2622.0,3.2078]
[1729590203852,3.88374,2622.5,2622.0,3.2078]
[1729590204054,0.38154,2622.1,2622.0,3.2078]
[1729590205253,3.2078,2622.7,2622.0,7.0214]
[1729590205449,0.38151,2622.4,2622.3,3.2078]
[1729590206345,1.466,2622.9,2622.3,3.2078]
[1729590206346,0.38149,2622.5,2622.3,3.2078]
[1729590206850,0.3815,2622.4,2622.3,3.2078]
[1729590207755,2.38,2622.7,2622.3,3.2078]
[1729590208054,0.38149,2622.5,2622.3,3.2078]
[1729590208253,0.3815,2622.4,2622.3,3.2078]
[1729590209452,2.38,2622.7,2622.0,3.58935]
[1729590209654,0.38148,2622.5,2622.4,3.2078]
[1729590211057,0.38148,2622.5,2622.0,3.2078]
[1729590211058,0.38154,2622.1,2622.0,3.2078]
[1729590216846,0.38158,2621.8,2621.7,3.2078]
[1729590218159,0.38158,2621.8,2621.4,3.2078]
[1729590218160,2.38,2621.8,2621.4,3.2078]
[1729590218462,0.38163,2621.5,2621.4,3.2078]
[1729590220962,0.38167,2621.2,2621.1,3.2078]
[1729590221264,0.38167,2621.2,2621.1,2.44975534]
[1729590221265,2.76167,2621.2,2621.1,2.44975534]
[1729590221566,2.38,2621.2,2620.8,3.2078]
[1729590221868,0.38171,2621.0,2620.8,3.2078]
[1729590222168,0.38171,2621.0,2620.8,3.58953]
[1729590222958,2.38,2621.2,2620.8,3.58953]
[1729590223263,2.38,2621.2,2620.8,3.2078]
[1729590223464,0.38172,2620.9,2620.8,3.2078]
[1729590223765,2.38,2621.2,2620.8,7.40473]
[1729590223766,0.38171,2621.0,2620.8,7.40473]
[1729590223961,0.38171,2621.0,2620.8,0.38173]
[1729590224172,0.38171,2621.0,2620.9,3.2078]
[1729590226655,2.76171,2621.0,2620.9,3.2078]
[1729590227268,6.57691,2621.0,2620.9,3.2078]
[1729590227458,6.57691,2621.0,2620.2,0.3818]
[1729590227459,0.38178,2620.5,2620.4,3.2078]
[1729590227661,0.38183,2620.2,2620.1,3.2078]
[1729590227970,2.38,2620.4,2620.1,3.2078]
[1729590228166,0.38176,2620.6,2620.4,0.38178]
[1729590228364,2.38,2620.7,2620.1,3.2078]
[1729590228569,0.38178,2620.5,2620.3,0.3818]
[1729590230470,2.38,2620.7,2620.1,3.2078]
[1729590230679,0.38178,2620.5,2620.1,3.2078]
[1729590231171,0.38177,2620.6,2620.4,0.38178]
[1729590231776,2.38,2620.7,2620.1,3.2078]
[1729590231966,0.38178,2620.5,2620.3,0.38179]
[1729590232470,2.38,2620.7,2620.2,0.38181]
[1729590232671,0.38181,2620.3,2620.1,3.58962]
[1729590232972,0.38182,2620.3,2620.1,3.58963]
[1729590233173,2.38,2620.4,2620.2,0.3818]
[1729590233174,2.76179,2620.4,2620.2,0.3818]
[1729590233471,2.76179,2620.4,2620.3,0.3818]
[1729590233672,2.38,2620.4,2620.3,0.3818]
[1729590236267,0.38176,2620.6,2620.4,0.38179]
[1729590236575,0.38176,2620.6,2620.4,0.38178]
[1729590236771,2.38,2620.7,2620.4,0.38178]
[1729590236972,0.38177,2620.5,2620.4,0.38178]
[1729590237163,2.38,2620.7,2620.4,0.38178]
[1729590237366,0.38177,2620.6,2620.4,0.38178]
[1729590237572,4.99854332,2620.8,2620.7,0.38174]
[1729590237573,3.2078,2620.8,2620.7,0.38174]
[1729590237780,0.38169,2621.1,2620.5,4.77044]
[1729590237977,2.38,2620.8,2620.4,3.2078]
[1729590238175,0.38175,2620.7,2620.5,0.38177]
[1729590238774,2.38,2620.8,2620.1,3.2078]
[1729590239072,0.38177,2620.6,2620.1,3.2078]
[1729590239269,0.38175,2620.7,2620.1,3.2078]
[1729590239477,0.38175,2620.7,2620.5,0.38176]
[1729590240677,0.38176,2620.6,2620.5,0.38176]
[1729590241080,0.38175,2620.7,2620.5,4.19776]
[1729590241384,0.38175,2620.7,2620.5,0.38176]
[1729590242070,3.2078,2621.0,2620.5,3.2078]
[1729590242278,0.38172,2620.9,2620.8,0.38173]
[1729590242476,0.38172,2620.9,2620.5,3.2078]
[1729590242774,0.38172,2620.9,2620.7,0.38173]
[1729590242978,3.58951,2621.0,2620.5,3.2078]
[1729590243383,3.58951,2621.0,2620.8,0.38172]
[1729590243680,0.38172,2620.9,2620.8,0.38172]
[1729590243876,3.2078,2621.0,2620.9,0.38172]
[1729590243877,3.5895,2621.0,2620.9,0.38172]
[1729590244186,2.38,2621.5,2620.9,3.8152]
[1729590244477,0.38168,2621.2,2621.0,0.38169]
[1729590244677,2.76169,2621.1,2620.9,0.38171]
[1729590245068,0.3817,2621.0,2620.8,0.38172]
[1729590245676,2.76169,2621.1,2620.9,0.38171]
[1729590246681,2.76169,2621.1,2620.9,0.3817]
[1729590246882,2.38,2621.3,2620.7,3.2078]
[1729590247369,2.38,2621.3,2620.9,0.3817]
[1729590247575,2.38,2621.0,2620.9,0.38172]
[1729590248579,2.38,2621.0,2620.7,3.2078]
[1729590248884,2.38,2621.0,2620.9,0.38172]
[1729590250677,2.38,2621.0,2620.9,4.19692]
[1729590250880,0.38169,2621.1,2621.0,0.3817]
[1729590251384,0.38169,2621.1,2620.9,0.38171]
[1729590251779,0.38169,2621.1,2620.7,3.2078]
[1729590252191,2.38,2621.2,2621.1,0.38169]
[1729590252683,0.38165,2621.4,2621.2,0.38166]
[1729590253079,3.58944,2621.5,2620.9,0.9543]
[1729590253280,11.054,2622.7,2621.0,3.2078]
[1729590253281,3.2078,2621.8,2621.0,3.2078]
[1729590253477,2.38,2621.8,2621.4,3.2078]
[1729590253688,2.38,2621.6,2621.5,0.38162]
[1729590253987,2.76162,2621.6,2621.4,0.38164]
[1729590254188,2.76162,2621.6,2621.1,3.2078]
[1729590254189,2.38,2621.6,2621.2,0.38167]
[1729590254385,2.38,2621.3,2620.8,3.2078]
[1729590254590,0.38168,2621.2,2621.0,0.38169]
[1729590254887,0.38169,2621.1,2620.9,0.38171]
[1729590255281,0.38169,2621.1,2620.9,3.8152]
[1729590255485,0.38168,2621.2,2621.0,0.38169]
[1729590255890,0.38168,2621.2,2621.1,0.38169]
[1729590256479,0.38168,2621.2,2621.0,0.38169]
[1729590256684,2.76166,2621.3,2621.1,0.38167]
[1729590257084,2.76942543,2621.5,2620.8,3.2078]
[1729590257283,2.76164,2621.5,2621.3,0.38166]
[1729590257491,2.76161,2621.7,2621.5,0.38162]
[1729590258294,2.76161,2621.7,2621.2,3.2078]
[1729590258295,2.38,2621.7,2621.2,3.2078]
[1729590258599,2.7616,2621.7,2621.6,0.38161]
[1729590258888,2.38,2621.7,2621.6,0.38161]
[1729590259195,2.76158,2621.9,2621.3,1.33581]
[1729590259396,2.76158,2621.9,2621.7,0.38159]
[1729590259690,0.38158,2621.8,2621.7,0.38159]
[1729590260185,2.76158,2621.9,2621.8,0.38158]
[1729590260491,2.76158,2621.9,2621.7,0.38159]
[1729590260783,2.38,2621.9,2621.6,0.38161]
[1729590260990,0.38159,2621.8,2621.7,0.3816]
[1729590261289,2.76158,2621.9,2621.7,0.3816]
[1729590261498,0.38158,2621.8,2621.6,0.3816]
[1729590261789,0.38158,2621.8,2621.7,0.3816]
[1729590261988,0.38158,2621.8,2621.2,4.16196]
[1729590261989,0.38158,2621.8,2621.6,0.3816]
[1729590262579,2.38,2621.7,2621.6,0.3816]
[1729590262786,0.38162,2621.6,2621.5,0.38162]
[1729590263183,0.38164,2621.4,2620.9,0.99806403]
[1729590263393,2.76165,2621.4,2621.2,0.38166]
[1729590263686,0.38166,2621.3,2621.2,0.38166]
[1729590263880,2.76165,2621.4,2621.3,0.38166]
[1729590264085,0.38166,2621.3,2621.2,0.38167]
[1729590265091,2.76166,2621.4,2621.3,0.38166]
[1729590265293,0.38166,2621.3,2621.2,0.38167]
[1729590265986,2.76165,2621.4,2621.2,0.38167]
[1729590266390,2.38,2621.4,2621.2,0.38167]
[1729590266592,0.38166,2621.3,2621.2,0.38167]
[1729590267392,2.76165,2621.4,2621.2,0.38167]
[1729590267688,0.38166,2621.3,2621.2,0.38167]
[1729590267895,2.76165,2621.4,2621.0,0.3817]
[1729590268186,2.76165,2621.4,2620.9,3.2078]
[1729590268187,2.76165,2621.4,2621.2,0.38166]
[1729590268894,2.76165,2621.4,2620.9,3.2078]
[1729590269086,2.76165,2621.4,2621.3,0.38166]
[1729590269394,2.76165,2621.4,2620.9,3.2078]
[1729590269691,2.76165,2621.4,2621.2,0.38166]
[1729590270093,2.76165,2621.4,2621.3,0.38166]
[1729590270489,2.76165,2621.4,2621.2,0.38166]
[1729590271301,0.38165,2621.4,2621.3,0.38166]
[1729590272190,2.38,2621.6,2620.9,3.2078]
[1729590272390,2.38,2621.4,2621.1,0.38168]
[1729590272593,0.38169,2621.1,2620.7,0.38174]
[1729590272799,2.76172,2620.9,2620.7,0.38174]
[1729590273104,0.38175,2620.7,2620.5,3.58957]
[1729590273393,0.38176,2620.6,2620.5,3.2078]
[1729590280100,2.77590187,2620.7,2620.2,0.38182]
[1729590280298,0.38178,2620.5,2620.2,0.38182]
[1729590280499,0.38179,2620.4,2620.2,0.38182]
[1729590280704,0.38178,2620.5,2620.2,0.38182]
[1729590281398,0.38178,2620.5,2620.1,3.2078]
[1729590281606,0.38178,2620.5,2620.2,0.3818]
[1729590281797,2.38,2620.7,2620.2,0.3818]
[1729590281999,0.38178,2620.5,2620.2,0.3818]
[1729590282301,0.38178,2620.5,2620.2,0.38182]
[1729590283404,0.38179,2620.4,2620.2,0.38182]
[1729590284001,0.38174,2620.7,2620.4,0.38178]
[1729590284202,5.5878,2620.9,2620.4,3.2078]
[1729590284409,3.58952,2620.9,2620.6,0.38175]
[1729590284606,0.38175,2620.7,2620.5,0.38177]
[1729590285201,0.38176,2620.6,2620.4,3.58958]
[1729590285404,5.5878,2620.9,2620.0,3.2078]
[1729590285405,2.38,2620.7,2620.0,3.2078]
[1729590285600,0.38177,2620.5,2620.3,0.38179]
[1729590286002,0.38177,2620.5,2620.4,0.38179]
[1729590286600,0.38177,2620.5,2620.4,4.19779]
[1729590286807,0.38177,2620.6,2620.4,4.19778]
[1729590287007,0.38177,2620.6,2620.4,0.38178]
[1729590288106,0.38176,2620.6,2620.4,0.38178]
[1729590289116,0.38177,2620.5,2620.4,0.38178]
[1729590290304,0.38177,2620.6,2620.4,0.38178]
[1729590291605,2.38,2620.7,2620.3,3.2078]
[1729590291812,0.38173,2620.6,2620.3,3.2078]
[1729590292108,0.38174,2620.5,2620.3,3.2078]
[1729590293615,0.38173,2620.6,2620.2,0.38177]
[1729590295114,4.10375033,2620.9,2620.1,5.5878]
[1729590295313,0.38173,2620.6,2620.3,0.38176]
[1729590297310,2.38,2620.5,2620.1,3.2078]
[1729590297714,0.38177,2620.3,2620.1,3.2078]
[1729590298014,0.38176,2620.4,2620.1,3.58959]
[1729590298212,0.38176,2620.4,2620.1,3.58958]
[1729590299805,0.38176,2620.4,2620.1,0.38178]
[1729590300110,0.38176,2620.4,2620.1,3.58958]
[1729590300705,0.38691476,2620.5,2620.1,3.2078]
[1729590300923,0.38177,2620.3,2620.1,3.2078]
[1729590301515,5.5878,2620.7,2620.1,3.2078]
[1729590301712,5.98214265,2620.7,2620.1,3.2078]
[1729590302308,6.93644265,2620.7,2620.1,3.2078]
[1729590302611,0.38177,2620.3,2620.1,3.2078]
[1729590303719,0.38178,2620.2,2620.1,3.2078]
[1729590303918,2.38,2620.2,2619.6,40.8]
[1729590304120,2.38,2620.2,2619.4,4.7049513]
[1729590304121,0.38186,2619.7,2619.4,3.2078]
[1729590304327,2.38,2619.8,2619.4,3.58969]
[1729590304622,0.38185,2619.7,2619.4,3.58969]
[1729590305220,2.38,2619.8,2619.4,3.58969]
[1729590305516,2.38,2619.8,2619.4,3.2078]